bitfinex-derivatives/quotes_BNBF0:USTF0_20250511
["timestamp","ask_amount","ask_price","bid_price","bid_amount"]
[1746972768257,0.30707343,651.31,650.59,1.1714452]
[1746972768459,0.30707343,651.31,650.59,1.45344975]
[1746972768657,0.30707343,651.31,650.6,0.28200455]
[1746972769064,0.30707343,651.31,650.61,1.1714452]
[1746972769259,0.30707343,651.31,650.61,1.45344975]
[1746972769459,0.30707343,651.31,650.62,1.45344975]
[1746972769661,0.30707343,651.31,650.62,1.1714452]
[1746972769963,0.30707343,651.31,650.63,1.45329563]
[1746972770260,0.30707343,651.31,650.64,0.28185043]
[1746972770465,0.30707343,651.31,650.65,1.1714452]
[1746972770966,0.30707343,651.31,650.66,1.1714452]
[1746972771167,0.30707343,651.31,650.66,1.45329563]
[1746972771363,0.30707343,651.31,650.67,1.1714452]
[1746972771566,0.30707343,651.31,650.68,1.1714452]
[1746972771765,0.30707343,651.31,650.69,0.28185043]
[1746972772066,0.30707343,651.31,650.7,1.1714452]
[1746972772267,0.30707343,651.31,650.7,1.45329563]
[1746972772463,0.30707343,651.31,650.71,1.45329563]
[1746972772969,0.30707343,651.31,650.72,0.28185043]
[1746972773170,0.30707343,651.31,650.72,1.45329563]
[1746972773471,0.30707343,651.31,650.73,1.45329563]
[1746972773869,0.30707343,651.31,650.74,1.1714452]
[1746972774069,0.30707343,651.31,650.74,1.45329563]
[1746972774266,0.30707343,651.31,650.75,1.1714452]
[1746972774470,0.30707343,651.31,650.75,1.45329563]
[1746972774670,0.30707343,651.31,650.76,1.1714452]
[1746972774970,0.30707343,651.31,650.76,1.45329563]
[1746972775164,0.30707343,651.31,650.77,0.28185043]
[1746972775470,0.30707343,651.31,650.78,1.45329563]
[1746972775771,0.30707343,651.31,650.79,0.28185043]
[1746972776076,0.30707343,651.31,650.8,1.45329563]
[1746972776371,0.30707343,651.31,650.81,0.28185043]
[1746972776671,0.30707343,651.31,650.82,1.45329563]
[1746972776969,0.30707343,651.31,650.83,0.28185043]
[1746972777273,0.30707343,651.31,650.84,1.1714452]
[1746972777571,0.30707343,651.31,650.85,1.45329563]
[1746972777870,0.30707343,651.31,649.6,0.62928818]
[1746972777871,0.30707343,651.31,650.86,1.45329563]
[1746972778172,0.30707343,651.31,650.87,0.28185043]
[1746972778372,0.30707343,651.31,650.87,1.45329563]
[1746972778769,0.30707343,651.31,650.88,1.45329563]
[1746972779074,0.30707343,651.31,650.89,0.28185043]
[1746972779272,0.30707343,651.31,650.9,1.1714452]
[1746972779673,0.30707343,651.31,650.91,1.1714452]
[1746972779973,0.30707343,651.31,650.92,0.28185043]
[1746972780473,0.30707343,651.31,650.93,1.1714452]
[1746972780976,0.30707343,651.31,650.94,0.28185043]
[1746972781475,0.30707343,651.31,650.95,1.1714452]
[1746972781978,0.30707343,651.31,650.94,0.28185043]
[1746972782277,0.30707343,651.31,650.96,0.28185043]
[1746972782477,0.30707343,651.31,650.95,0.28185043]
[1746972782679,0.30707343,651.31,649.74,0.91113861]
[1746972782878,0.30707343,651.31,649.75,1.17249875]
[1746972783074,0.30707343,651.31,649.75,2.08363736]
[1746972783277,0.30707343,651.31,649.76,0.2669848]
[1746972783477,0.30707343,651.31,649.77,1.17249875]
[1746972783878,0.30707343,651.31,649.78,1.45434918]
[1746972784380,0.30707343,651.31,649.79,1.45434918]
[1746972784581,0.30707343,651.31,649.8,0.28185043]
[1746972784881,0.30707343,651.31,649.81,1.45434918]
[1746972785183,0.30707343,651.31,649.82,0.28185043]
[1746972785384,0.30707343,651.31,649.83,1.17249875]
[1746972785585,0.30707343,651.31,649.83,1.45434918]
[1746972785787,0.30707343,651.31,649.84,1.17249875]
[1746972785987,0.30707343,651.31,649.84,1.45434918]
[1746972786183,0.30707343,651.31,649.85,1.17249875]
[1746972786383,0.30707343,651.31,649.85,1.45434918]
[1746972786581,0.30707343,651.31,649.86,1.17249875]
[1746972786781,0.30707343,651.31,649.87,1.17249875]
[1746972786981,0.30707343,651.31,649.88,0.28185043]
[1746972787183,0.30707343,651.31,649.89,1.17249875]
[1746972787388,0.30707343,651.31,649.9,1.17249875]
[1746972787587,0.30707343,651.31,649.91,0.28185043]
[1746972787886,0.30707343,651.31,649.92,1.45434918]
[1746972788289,0.30707343,651.31,649.93,0.28185043]
[1746972788489,0.30707343,651.31,649.93,1.17249875]
[1746972788785,0.30707343,651.31,649.94,1.17249875]
[1746972788989,0.30707343,651.31,649.94,1.45434341]
[1746972789486,0.30707343,651.31,649.95,1.17249875]
[1746972789682,0.30707343,651.31,649.95,1.45434341]
[1746972789885,0.30707343,651.31,649.96,0.28184466]
[1746972790190,0.30707343,651.31,649.97,1.17249875]
[1746972790385,0.30707343,651.31,649.97,1.45434341]
[1746972790693,0.30707343,651.31,649.98,1.45434341]
[1746972791091,0.30707343,651.31,649.99,1.45434341]
[1746972791392,0.30707343,651.31,650.0,0.28184466]
[1746972791593,0.30707343,651.31,650.01,0.28184466]
[1746972791790,0.30707343,651.31,650.02,1.17542758]
[1746972792088,0.30707343,651.31,650.02,1.45727224]
[1746972792293,0.30707343,651.31,650.03,1.17542758]
[1746972792593,0.30707343,651.31,650.04,1.45727224]
[1746972792988,0.30707343,651.31,650.05,0.28184466]
[1746972793189,0.30707343,651.31,650.06,0.28184466]
[1746972793489,0.30707343,651.31,650.07,1.45727224]
[1746972793693,0.30707343,651.31,650.08,1.45727224]
[1746972793988,0.30707343,651.31,650.09,1.45727224]
[1746972794394,0.30707343,651.31,650.1,1.45727224]
[1746972794793,0.30707343,651.31,650.11,1.17542758]
[1746972795095,0.30707343,651.31,650.12,0.28185388]
[1746972795293,0.30707343,651.31,650.13,1.17542758]
[1746972795494,0.30707343,651.31,650.13,1.45728146]
[1746972795794,0.30707343,651.31,650.14,0.28185388]
[1746972795993,0.30707343,651.31,650.15,1.17542758]
[1746972796194,0.30707343,651.31,650.15,2.08657658]
[1746972796594,0.30707343,651.31,650.16,1.17542758]
[1746972796790,0.30707343,651.31,650.16,1.45728146]
[1746972797096,0.30707343,651.31,650.17,2.08657658]
[1746972797492,0.30707343,651.31,650.18,1.45728146]
[1746972797897,0.30707343,651.31,650.19,1.17542758]
[1746972798398,0.30707343,651.31,650.19,1.45728146]
[1746972798698,0.30707343,651.31,650.2,2.08657658]
[1746972799093,0.30707343,651.31,650.21,0.911149]
[1746972799293,0.30707343,651.31,650.22,0.911149]
[1746972799597,0.30707343,651.31,650.23,1.17542758]
[1746972799899,0.30707343,651.31,650.23,2.08657658]
[1746972800199,0.30707343,651.31,650.24,1.17542758]
[1746972800399,0.30707343,651.31,650.24,2.08657658]
[1746972800699,0.30707343,651.31,650.25,2.08657658]
[1746972801001,0.30707343,651.31,650.26,0.911149]
[1746972801194,0.30707343,651.31,650.27,1.17542758]
[1746972801399,0.30707343,651.31,650.27,2.08657658]
[1746972801701,0.30707343,651.31,650.28,0.28185388]
[1746972801902,0.30707343,651.31,650.29,1.17542758]
[1746972802198,0.30707343,651.31,650.29,1.45728146]
[1746972802502,0.30707343,651.31,650.3,0.28185388]
[1746972802697,0.30707343,651.31,650.31,1.17542758]
[1746972802898,0.30707343,651.31,650.31,1.45728146]
[1746972803104,0.30707343,651.31,650.32,0.28185388]
[1746972803398,0.30707343,651.31,650.33,0.28185388]
[1746972803803,0.30707343,651.31,650.34,1.45728146]
[1746972804103,0.30707343,651.31,650.35,1.45728146]
[1746972804397,0.30707343,651.31,650.36,1.45728146]
[1746972804804,0.30707343,651.31,650.37,1.45728146]
[1746972805202,0.30707343,651.31,650.38,1.45728146]
[1746972805402,0.30707343,651.31,650.39,0.28185388]
[1746972805803,0.30707343,651.31,650.4,1.45728146]
[1746972806203,0.30707343,651.31,650.41,0.28185388]
[1746972806504,0.30707343,651.31,650.42,0.28185388]
[1746972806703,0.30707343,651.31,650.42,1.45728146]
[1746972806906,0.30707343,651.31,650.43,0.28185388]
[1746972807301,0.30707343,651.31,650.44,0.28185388]
[1746972807502,0.30707343,651.31,650.45,1.45728146]
[1746972807704,0.30707343,651.31,650.46,1.17542758]
[1746972807904,0.30707343,651.31,650.46,1.45728146]
[1746972808104,0.30707343,651.31,650.47,1.17542758]
[1746972808305,0.30707343,651.31,650.47,1.45728146]
[1746972808600,0.30707343,651.31,650.48,0.28185388]
[1746972808801,0.30707343,651.31,650.48,1.17542758]
[1746972809205,0.30707343,651.31,650.49,0.28184137]
[1746972809506,0.30707343,651.31,650.5,1.45726895]
[1746972809805,0.30707343,651.31,650.51,1.45726895]
[1746972810004,0.30707343,651.31,650.52,0.28184137]
[1746972810201,0.30707343,651.31,650.52,1.45726895]
[1746972810505,0.30707343,651.31,650.53,0.28184137]
[1746972810705,0.30707343,651.31,650.54,1.17542758]
[1746972811306,0.30707343,651.31,650.55,0.28184137]
[1746972811609,0.30707343,651.31,650.56,0.28184137]
[1746972811808,0.30707343,651.31,650.57,1.17542758]
[1746972812306,0.30707343,651.31,650.57,1.45726895]
[1746972812605,0.30707343,651.31,650.58,1.17542758]
[1746972812803,0.30707343,651.31,650.58,1.45726895]
[1746972813001,0.30707343,651.31,650.59,1.17542758]
[1746972813201,0.30707343,651.31,650.59,1.45726895]
[1746972813506,0.30707343,651.31,650.6,0.28184137]
[1746972813909,0.30707343,651.31,650.61,1.17542758]
[1746972814204,0.30707343,651.31,650.62,0.28184137]
[1746972814404,0.30707343,651.31,650.63,1.17542758]
[1746972814608,0.30707343,651.31,650.64,0.28184137]
[1746972815108,0.30707343,651.31,650.65,1.17542758]
[1746972815308,0.30707343,651.31,650.65,1.45726895]
[1746972815610,0.30707343,651.31,650.66,0.28184137]
[1746972815904,0.30707343,651.31,650.67,1.17542758]
[1746972816410,0.30707343,651.31,650.68,0.28184137]
[1746972816713,0.30707343,651.31,650.69,0.28184137]
[1746972817014,0.30707343,651.31,650.7,1.45726895]
[1746972817412,0.30707343,651.31,650.71,0.28184137]
[1746972817915,0.30707343,651.31,650.72,1.46531459]
[1746972818114,0.30707343,651.31,650.73,1.18347322]
[1746972818315,0.30707343,651.31,650.73,1.46531459]
[1746972818816,0.30707343,651.31,650.74,0.28184137]
[1746972819018,0.30707343,651.31,650.75,1.18347322]
[1746972819314,0.30707343,651.31,650.76,0.28184137]
[1746972819718,0.30707343,651.31,650.77,0.28184137]
[1746972820117,0.30707343,651.31,650.78,1.18347322]
[1746972820318,0.30707343,651.31,650.78,1.46531459]
[1746972820617,0.30707343,651.31,650.79,1.46531459]
[1746972820913,0.30707343,651.31,650.8,1.46531459]
[1746972821113,0.30707343,651.31,650.81,0.28184137]
[1746972821518,0.30707343,651.31,650.82,1.18347322]
[1746972821718,0.30707343,651.31,650.82,1.46531459]
[1746972822013,0.30707343,651.31,650.83,1.46531459]
[1746972822219,0.30707343,651.31,650.84,0.28184137]
[1746972822519,0.30707343,651.31,650.85,0.28184137]
[1746972822920,0.30707343,651.31,650.86,1.46531459]
[1746972823220,0.30707343,651.31,650.87,0.28184137]
[1746972823419,0.30707343,651.31,650.87,1.46531459]
[1746972823619,0.30707343,651.31,650.88,0.28184137]
[1746972823914,0.30707343,651.31,650.89,1.46531459]
[1746972824219,0.30707343,651.31,650.9,0.28184137]
[1746972824922,0.30707343,651.31,649.84,0.97353024]
[1746972825221,0.30707343,651.31,649.85,2.09470204]
[1746972825521,0.30707343,651.31,649.86,2.09470204]
[1746972825822,0.30707343,651.31,649.87,0.911311]
[1746972826022,0.30707343,651.31,649.88,1.18339104]
[1746972826215,0.30707343,651.31,649.88,2.09470204]
[1746972826517,0.30707343,651.31,649.89,2.09470204]
[1746972826721,0.30707343,651.31,649.9,1.18339104]
[1746972826921,0.30707343,651.31,649.9,2.09470204]
[1746972827123,0.30707343,651.31,649.91,1.18339104]
[1746972827421,0.30707343,651.31,649.92,1.18339104]
[1746972827623,0.30707343,651.31,649.92,2.09470204]
[1746972827820,0.30707343,651.31,649.93,1.18339104]
[1746972828017,0.30707343,651.31,649.93,2.09470204]
[1746972828317,0.30707343,651.31,649.94,1.46529857]
[1746972828722,0.30707343,651.31,649.95,1.46529857]
[1746972829222,0.30707343,651.31,649.96,1.46529857]
[1746972829816,0.30707343,651.31,649.97,1.46529857]
[1746972830023,0.30707343,651.31,649.98,1.46529857]
[1746972830419,0.30707343,651.31,649.99,0.28190753]
[1746972830618,0.30707343,651.31,650.0,1.18339104]
[1746972831018,0.30707343,651.31,650.01,1.18339104]
[1746972831217,0.30707343,651.31,650.02,0.28190753]
[1746972831421,0.30707343,651.31,650.03,1.18339104]
[1746972831618,0.30707343,651.31,650.03,1.46529857]
[1746972831920,0.30707343,651.31,650.04,1.46529857]
[1746972832123,0.30707343,651.31,650.04,1.18339104]
[1746972832424,0.30707343,651.31,650.05,0.28193805]
[1746972832826,0.30707343,651.31,650.06,1.46532909]
[1746972833126,0.30707343,651.31,650.07,0.28193805]
[1746972833422,0.30707343,651.31,650.08,0.28193805]
[1746972833722,0.30707343,651.31,650.09,1.46532909]
[1746972834028,0.30707343,651.31,650.1,0.28193805]
[1746972834424,0.30707343,651.31,650.11,1.18339104]
[1746972834622,0.30707343,651.31,650.12,1.18339104]
[1746972834825,0.30707343,651.31,650.13,0.28193805]
[1746972835128,0.30707343,651.31,650.14,0.28193805]
[1746972835427,0.30707343,651.31,650.15,1.18339104]
[1746972835629,0.30707343,651.31,650.15,1.46532909]
[1746972835829,0.30707343,651.31,650.16,0.28193805]
[1746972836029,0.30707343,651.31,650.17,1.18339104]
[1746972836328,0.30707343,651.31,650.17,1.46532909]
[1746972836528,0.30707343,651.31,650.18,0.28193805]
[1746972836729,0.30707343,651.31,650.19,1.46532909]
[1746972837330,0.30707343,651.31,650.2,1.18339104]
[1746972837528,0.30707343,651.31,650.2,1.46532909]
[1746972837730,0.30707343,651.31,650.21,1.18339104]
[1746972837928,0.30707343,651.31,650.21,1.46532909]
[1746972838125,0.30707343,651.31,650.22,1.46532909]
[1746972838431,0.30707343,651.31,650.23,1.46532909]
[1746972838828,0.30707343,651.31,650.24,0.28193805]
[1746972839030,0.30707343,651.31,650.25,1.18339104]
[1746972839530,0.30707343,651.31,650.26,1.18339104]
[1746972839727,0.30707343,651.31,650.26,1.46532909]
[1746972839932,0.30707343,651.31,650.27,1.18339104]
[1746972840227,0.30707343,651.31,650.28,1.18339104]
[1746972840532,0.30707343,651.31,648.97,0.97353024]
[1746972840533,0.30707343,651.31,650.29,1.46532909]
[1746972840832,0.30707343,651.31,650.3,0.28193805]
[1746972841132,0.30707343,651.31,650.3,1.46532909]
[1746972841334,0.30707343,651.31,650.31,1.18339104]
[1746972841533,0.30707343,651.31,650.31,1.46532909]
[1746972841733,0.30707343,651.31,650.32,1.46532909]
[1746972842132,0.30707343,651.31,650.33,0.28193805]
[1746972842332,0.30707343,651.31,650.33,1.46532909]
[1746972842628,0.30707343,651.31,650.34,1.18339104]
[1746972842833,0.30707343,651.31,650.35,1.18339104]
[1746972843032,0.30707343,651.31,650.36,0.28193805]
[1746972843331,0.30707343,651.31,650.37,1.18339104]
[1746972843528,0.30707343,651.31,650.37,1.46532909]
[1746972843927,0.30707343,651.31,650.38,1.46532909]
[1746972844328,0.30707343,651.31,650.39,1.46532909]
[1746972844837,0.30707343,651.31,650.4,0.28193805]
[1746972845035,0.30707343,651.31,650.41,0.28193805]
[1746972845529,0.30707343,651.31,650.42,1.46532909]
[1746972845829,0.30707343,651.31,650.43,0.28193805]
[1746972846035,0.30707343,651.31,650.43,1.46532909]
[1746972846230,0.30707343,651.31,650.44,0.28193805]
[1746972846430,0.30707343,651.31,650.45,0.28193805]
[1746972846630,0.30707343,651.31,650.46,1.18339104]
[1746972846829,0.30707343,651.31,650.47,1.18339104]
[1746972847030,0.30707343,651.31,650.48,0.28193805]
[1746972847334,0.30707343,651.31,650.49,0.28193805]
[1746972847536,0.30707343,651.31,650.5,1.18339104]
[1746972847834,0.30707343,651.31,650.5,1.46532909]
[1746972848135,0.30707343,651.31,650.51,1.46532909]
[1746972848431,0.30707343,651.31,650.52,1.46532909]
[1746972848735,0.30707343,651.31,650.53,1.46532909]
[1746972849136,0.30707343,651.31,650.54,1.46532909]
[1746972849435,0.30707343,651.31,650.55,0.28193805]
[1746972850030,0.30707343,651.31,650.56,1.18339104]
[1746972850632,0.30707343,651.31,650.57,1.46532909]
[1746972850835,0.30707343,651.31,650.58,0.28193805]
[1746972851135,0.30707343,651.31,650.59,1.18339104]
[1746972851535,0.30707343,651.31,650.6,1.46532909]
[1746972851836,0.30707343,651.31,650.61,0.28193805]
[1746972852230,0.30707343,651.31,650.62,1.18339104]
[1746972852731,0.30707343,651.31,650.63,1.18339104]
[1746972852931,0.30707343,651.31,650.63,1.46532909]
[1746972853335,0.30707343,651.31,650.64,1.46532909]
[1746972853536,0.30707343,651.31,650.65,1.18339104]
[1746972853934,0.30707343,651.31,650.66,1.46532909]
[1746972854233,0.30707343,651.31,650.67,0.28193805]
[1746972855138,0.30707343,651.31,649.8,0.91140313]
[1746972855437,0.30707343,651.31,649.81,2.09278225]
[1746972855838,0.30707343,651.31,649.82,2.09278225]
[1746972856138,0.30707343,651.31,649.83,1.18137912]
[1746972856338,0.30707343,651.31,649.83,2.09278225]
[1746972856537,0.30707343,651.31,649.84,0.91140313]
[1746972856740,0.30707343,651.31,649.84,2.09278225]
[1746972856937,0.30707343,651.31,649.85,0.91140313]
[1746972857132,0.30707343,651.31,649.86,0.91140313]
[1746972857438,0.30707343,651.31,649.87,1.18137912]
[1746972857739,0.30707343,651.31,649.88,1.18137912]
[1746972858039,0.30707343,651.31,649.88,2.09278225]
[1746972858338,0.30707343,651.31,649.89,2.09278225]
[1746972858534,0.30707343,651.31,649.9,0.91140313]
[1746972858837,0.30707343,651.31,649.91,0.91140313]
[1746972859040,0.30707343,651.31,649.92,1.18137912]
[1746972859238,0.30707343,651.31,649.92,2.09278225]
[1746972859540,0.30707343,651.31,649.85,0.26707085]
[1746972859541,0.30707343,651.31,649.93,2.09278225]
[1746972859734,0.30707343,651.31,649.94,0.91140313]
[1746972859936,0.30707343,651.31,649.94,2.09278225]
[1746972860138,0.30707343,651.31,649.95,2.09278225]
[1746972860439,0.30707343,651.31,649.96,0.91140313]
[1746972860635,0.30707343,651.31,649.97,1.18137912]
[1746972861135,0.30707343,651.31,649.98,0.91142306]
[1746972861639,0.30707343,651.31,649.99,0.91142306]
[1746972861840,0.30707343,651.31,649.99,2.09280218]
[1746972862140,0.30707343,651.31,650.0,1.46332379]
[1746972862636,0.30707343,651.31,650.01,0.28194467]
[1746972863039,0.30707343,651.31,650.02,1.18137912]
[1746972863236,0.30707343,651.31,650.03,0.91142306]
[1746972863435,0.30707343,651.31,650.03,2.09280218]
[1746972863638,0.30707343,651.31,650.04,0.91142306]
[1746972863937,0.30707343,651.31,650.05,2.09280218]
[1746972864240,0.30707343,651.31,650.06,0.91142306]
[1746972864737,0.30707343,651.31,650.07,1.46332379]
[1746972864937,0.30707343,651.31,650.08,0.28194467]
[1746972865141,0.30707343,651.31,650.09,1.18137912]
[1746972865640,0.30707343,651.31,650.1,1.18137912]
[1746972866141,0.30707343,651.31,650.11,1.46332379]
[1746972866335,0.30707343,651.31,650.12,0.28194467]
[1746972866640,0.30707343,651.31,650.11,1.18137912]
[1746972866943,0.30707343,651.31,650.12,1.46325617]
[1746972867542,0.30707343,651.31,650.13,1.46325617]
[1746972867845,0.30707343,651.31,650.14,1.18137912]
[1746972868046,0.30707343,651.31,650.14,1.46325617]
[1746972868247,0.30707343,651.31,650.15,0.28187705]
[1746972868548,0.30707343,651.31,650.16,1.46325617]
[1746972868741,0.30707343,651.31,650.17,1.18137912]
[1746972868942,0.30707343,651.31,650.17,1.46325617]
[1746972869347,0.30707343,651.31,650.18,1.46325617]
[1746972869547,0.30707343,651.31,650.19,0.28187705]
[1746972869744,0.30707343,651.31,650.19,1.46325617]
[1746972870042,0.30707343,651.31,650.2,0.28187705]
[1746972870244,0.30707343,651.31,650.21,1.18137912]
[1746972870448,0.30707343,651.31,650.22,0.28187705]
[1746972870747,0.30707343,651.31,650.23,1.46325617]
[1746972871048,0.30707343,651.31,650.24,0.28187705]
[1746972871449,0.30707343,651.31,650.25,1.46325617]
[1746972871650,0.30707343,651.31,650.26,0.28187705]
[1746972871945,0.30707343,651.31,650.27,1.46325617]
[1746972872348,0.30707343,651.31,650.28,1.46325617]
[1746972872647,0.30707343,651.31,650.29,0.28187705]
[1746972872851,0.30707343,651.31,650.3,1.18137912]
[1746972873051,0.30707343,651.31,650.3,1.46325617]
[1746972873454,0.30707343,651.31,650.31,0.28187705]
[1746972873651,0.30707343,651.31,650.32,1.18137912]
[1746972873851,0.30707343,651.31,650.32,1.46325617]
[1746972874252,0.30707343,651.31,650.33,0.28187705]
[1746972874453,0.30707343,651.31,650.33,1.46325617]
[1746972874753,0.30707343,651.31,650.34,0.28187705]
[1746972874952,0.30707343,651.31,650.35,1.46325617]
[1746972875453,0.30707343,651.31,650.36,0.28187705]
[1746972875756,0.30707343,651.31,650.37,1.46325617]
[1746972876054,0.30707343,651.31,650.38,0.28187705]
[1746972876249,0.30707343,651.31,650.38,1.46325617]
[1746972876553,0.30707343,651.31,650.39,0.28187705]
[1746972876753,0.30707343,651.31,650.4,1.18137912]
[1746972876954,0.30707343,651.31,650.41,0.28187705]
[1746972877253,0.30707343,651.31,650.42,1.46325617]
[1746972877553,0.30707343,651.31,650.43,0.28187705]
[1746972877757,0.30707343,651.31,650.43,1.46325617]
[1746972877955,0.30707343,651.31,650.44,1.46325617]
[1746972878152,0.30707343,651.31,650.45,0.28187705]
[1746972878459,0.30707343,651.31,650.46,1.46325617]
[1746972878858,0.30707343,651.31,650.47,0.28187705]
[1746972879156,0.30707343,651.31,650.48,1.46325617]
[1746972879356,0.30707343,651.31,650.49,1.18137912]
[1746972879656,0.30707343,651.31,650.49,1.46325617]
[1746972879859,0.30707343,651.31,650.5,1.46325617]
[1746972880153,0.30707343,651.31,650.51,1.46325617]
[1746972880460,0.30707343,651.31,650.52,0.28187705]
[1746972880752,0.30707343,651.31,650.53,0.28187705]
[1746972880951,0.30707343,651.31,650.54,0.28187705]
[1746972881153,0.30707343,651.31,650.54,1.46325617]
[1746972881353,0.30707343,651.31,650.55,0.28187705]
[1746972881552,0.30707343,651.31,650.56,0.28187705]
[1746972881759,0.30707343,651.31,650.57,1.46325617]
[1746972882159,0.30707343,651.31,650.58,0.28187705]
[1746972882458,0.30707343,651.31,650.59,0.28187705]
[1746972882657,0.30707343,651.31,650.6,1.18137912]
[1746972883057,0.30707343,651.31,650.61,1.18137912]
[1746972883659,0.30707343,651.31,650.62,0.28187705]
[1746972883959,0.30707343,651.31,650.63,1.18137912]
[1746972884155,0.30707343,651.31,650.64,1.18137912]
[1746972884356,0.30707343,651.31,650.64,1.46325617]
[1746972884561,0.30707343,651.31,650.65,0.28187705]
[1746972884863,0.30707343,651.31,650.65,1.46325617]
[1746972885058,0.30707343,651.31,650.66,1.18137912]
[1746972885361,0.30707343,651.31,650.67,0.28187705]
[1746972885564,0.30707343,651.31,650.68,1.18137912]
[1746972885863,0.30707343,651.31,650.69,0.28187705]
[1746972886065,0.30707343,651.31,650.7,1.18137912]
[1746972886565,0.30707343,651.31,650.71,1.46325617]
[1746972886760,0.30707343,651.31,650.72,0.28187705]
[1746972887764,0.30707343,651.31,650.26,0.28187705]
[1746972887964,0.30707343,651.31,650.27,0.28187705]
[1746972888167,0.30707343,651.31,650.28,1.46317741]
[1746972888461,0.30707343,651.31,650.28,1.18130036]
[1746972888865,0.30707343,651.31,650.29,1.46327675]
[1746972889265,0.30707343,651.31,650.3,1.18130036]
[1746972889464,0.30707343,651.31,650.3,1.46327675]
[1746972889665,0.30707343,651.31,650.31,0.28197639]
[1746972889864,0.30707343,651.31,650.32,1.18130036]
[1746972890064,0.30707343,651.31,650.32,1.46327675]
[1746972890365,0.30707343,651.31,650.33,1.46327675]
[1746972890666,0.30707343,651.31,650.34,0.28197639]
[1746972890861,0.30707343,651.31,650.34,1.46327675]
[1746972891059,0.30707343,651.31,650.35,1.46327675]
[1746972891366,0.30707343,651.31,650.36,0.28197639]
[1746972891559,0.30707343,651.31,650.37,1.18130036]
[1746972891759,0.30707343,651.31,650.37,1.46327675]
[1746972892165,0.30707343,651.31,650.38,0.28197639]
[1746972892366,0.30707343,651.31,650.39,1.18130036]
[1746972892560,0.30707343,651.31,650.4,1.18130036]
[1746972892866,0.30707343,651.31,650.41,0.28197639]
[1746972893067,0.30707343,651.31,650.42,1.18130036]
[1746972893665,0.30707343,651.31,650.43,1.18130036]
[1746972893864,0.30707343,651.31,650.43,1.46328019]
[1746972894165,0.30707343,651.31,650.44,1.46328019]
[1746972894465,0.30707343,651.31,650.45,0.28197983]
[1746972894665,0.30707343,651.31,650.46,1.18130036]
[1746972895261,0.30707343,651.31,650.47,1.18130036]
[1746972895465,0.30707343,651.31,650.47,1.46328019]
[1746972895666,0.30707343,651.31,650.48,0.28197983]
[1746972895864,0.30707343,651.31,650.49,1.18130036]
[1746972896066,0.30707343,651.31,650.5,0.28197983]
[1746972896269,0.30707343,651.31,650.51,1.18130036]
[1746972896566,0.30707343,651.31,650.52,0.28197983]
[1746972896863,0.30707343,651.31,650.53,1.18130036]
[1746972897166,0.30707343,651.31,650.54,0.28197983]
[1746972897867,0.30707343,651.31,649.41,0.28197983]
[1746972898167,0.30707343,651.31,649.42,1.18059102]
[1746972898462,0.30707343,651.31,649.42,1.44774696]
[1746972898666,0.30707343,651.31,649.43,1.18059102]
[1746972899067,0.30707343,651.31,649.44,1.18059102]
[1746972899264,0.30707343,651.31,649.44,1.46257085]
[1746972899464,0.30707343,651.31,649.45,0.28197983]
[1746972899666,0.30707343,651.31,649.45,1.46257085]
[1746972899966,0.30707343,651.31,649.46,0.28197983]
[1746972900262,0.30707343,651.31,649.47,1.18059102]
[1746972900661,0.30707343,651.31,649.48,1.18059102]
[1746972900869,0.30707343,651.31,649.48,1.46267389]
[1746972901262,0.30707343,651.31,649.49,1.46267389]
[1746972901567,0.26714466,651.3,649.5,0.28208287]
[1746972901767,0.26714466,651.3,649.51,0.28208287]
[1746972901967,0.26714466,651.3,649.52,1.18059102]
[1746972902168,0.26714466,651.3,649.52,1.46267389]
[1746972902368,0.26714466,651.3,649.53,2.09243098]
[1746972902570,0.26714466,651.3,649.54,1.18013882]
[1746972902766,0.26714466,651.3,649.54,2.09197878]
[1746972902966,0.26714466,651.3,649.55,1.18013882]
[1746972903163,0.26714466,651.3,649.55,1.46222169]
[1746972903366,0.26714466,651.3,649.56,0.28208287]
[1746972903569,0.26714466,651.3,649.57,1.18013882]
[1746972903769,0.26714466,651.3,649.57,1.46222169]
[1746972904069,0.26714466,651.3,648.96,0.62975709]
[1746972904070,0.30707343,651.31,649.58,1.46222169]
[1746972904470,0.30707343,651.31,649.59,0.28208287]
[1746972904670,0.30707343,651.31,649.6,1.18013882]
[1746972904969,0.30707343,651.31,649.6,1.46222169]
[1746972905169,0.30707343,651.31,649.61,1.46222169]
[1746972905465,0.30707343,651.31,649.62,1.46222169]
[1746972905771,0.30707343,651.31,649.63,0.28208287]
[1746972906171,0.30707343,651.31,649.64,0.28208287]
[1746972906367,0.30707343,651.31,649.65,1.18013882]
[1746972906873,0.30707343,651.31,649.66,0.28208287]
[1746972907070,0.30707343,651.31,649.67,0.28208287]
[1746972907368,0.30707343,651.31,649.68,0.28208287]
[1746972907671,0.30707343,651.31,649.68,1.18013882]
[1746972907972,0.30707343,651.31,649.69,1.46222169]
[1746972908272,0.30707343,651.31,649.7,0.28208287]
[1746972908571,0.30707343,651.31,649.71,1.18013882]
[1746972909072,0.30707343,651.31,649.72,0.28208287]
[1746972909266,0.30707343,651.31,649.72,1.46222169]
[1746972909766,0.30707343,651.31,649.49,0.2672924]
[1746972909767,0.30707343,651.31,649.73,1.46222169]
[1746972910172,0.30707343,651.31,649.74,0.28208287]